bitfinex/quotes_BTCUSD_20251029
["timestamp","ask_amount","ask_price","bid_price","bid_amount"]
[1761762868203,0.08981901,111870.0,111860.0,5e-05]
[1761762868420,0.51876296,111880.0,111860.0,0.17884492]
[1761762868654,0.1796423,111870.0,111860.0,0.18084492]
[1761762868795,0.1796423,111870.0,111860.0,5e-05]
[1761762869016,0.90425668,111870.0,111860.0,0.00205]
[1761762869300,0.26946131,111870.0,111860.0,0.00205]
[1761762869484,0.00086337,111870.0,111860.0,0.17884492]
[1761762869784,0.1796423,111870.0,111860.0,0.17884492]
[1761762870254,0.1796423,111870.0,111860.0,0.00205]
[1761762870378,0.00086337,111870.0,111860.0,0.17984492]
[1761762870587,0.00086337,111870.0,111860.0,0.99427831]
[1761762870797,0.00086337,111870.0,111860.0,0.99627831]
[1761762871022,0.00086337,111870.0,111860.0,0.99427831]
[1761762871647,0.0002,111900.0,111890.0,0.17874698]
[1761762871893,0.0002,111900.0,111890.0,0.26856599]
[1761762872299,0.0002,111900.0,111890.0,0.99318037]
[1761762872843,0.0002,111900.0,111890.0,1.02936265]
[1761762873488,0.0002,111900.0,111890.0,1.03236265]
[1761762873918,0.0002,111900.0,111890.0,0.30774827]
[1761762874127,0.0002,111900.0,111890.0,1.03236265]
[1761762874342,0.0002,111900.0,111890.0,1.03736265]
[1761762874549,0.0002,111900.0,111890.0,1.02941265]
[1761762874757,0.0002,111900.0,111890.0,1.37341265]
[1761762874976,0.0002,111900.0,111890.0,1.37841265]
[1761762875202,0.0002,111900.0,111890.0,1.34223037]
[1761762875426,0.0002,111900.0,111890.0,1.33823037]
[1761762875682,0.0002,111900.0,111890.0,1.34223037]
[1761762876135,0.0002,111900.0,111890.0,1.33723037]
[1761762876358,0.0608525,111920.0,111910.0,0.17871503]
[1761762876598,0.0608525,111920.0,111910.0,1.33314842]
[1761762877065,2.0,111950.0,111940.0,0.17866714]
[1761762877281,2.0,111960.0,111950.0,0.17864292]
[1761762877754,0.00194069,111960.0,111950.0,0.17864292]
[1761762877982,0.18057591,111960.0,111950.0,0.17865118]
[1761762878211,0.17865118,111950.0,111930.0,0.18758712]
[1761762878406,0.18057591,111960.0,111940.0,0.17866714]
[1761762878407,0.17863522,111960.0,111940.0,0.17866714]
[1761762878635,0.17865118,111950.0,111940.0,0.17866714]
[1761762878843,0.17865118,111950.0,111930.0,0.18758712]
[1761762878966,0.17866714,111940.0,111920.0,0.1876066]
[1761762879175,0.17866943,111940.0,111930.0,0.1786831]
[1761762879375,0.17865118,111950.0,111930.0,0.1786831]
[1761762879595,0.17865118,111950.0,111930.0,0.1806831]
[1761762879796,0.17866714,111940.0,111930.0,0.002]
[1761762880346,0.215273,111950.0,111930.0,0.1816831]
[1761762880569,2.17866714,111940.0,111930.0,0.003]
[1761762880784,0.17866714,111940.0,111930.0,0.003]
[1761762880986,0.17866714,111940.0,111930.0,0.001]
[1761762881211,0.17866714,111940.0,111930.0,0.1806831]
[1761762881840,0.17866714,111940.0,111930.0,0.1786831]
[1761762882075,0.1786831,111930.0,111910.0,0.18765078]
[1761762882283,0.1786831,111930.0,111920.0,0.17869907]
[1761762882486,0.1786831,111930.0,111910.0,0.27746979]
[1761762882695,0.1786831,111930.0,111920.0,0.17869907]
[1761762883566,0.1786831,111930.0,111920.0,0.001]
[1761762883999,0.21441812,111930.0,111920.0,0.001]
[1761762884228,2.21441812,111930.0,111920.0,0.001]
[1761762884431,2.9390325,111930.0,111920.0,0.001]
[1761762884686,2.21441812,111930.0,111920.0,0.001]
[1761762885295,2.21441812,111930.0,111920.0,0.003]
[1761762885718,2.0,111920.0,111910.0,0.17871438]
[1761762885928,0.1786831,111930.0,111920.0,0.17869671]
[1761762886134,2.0,111930.0,111920.0,0.17869671]
[1761762886747,2.0,111930.0,111910.0,0.17871438]
[1761762886956,2.0,111920.0,111910.0,0.17871365]
[1761762887162,2.08981901,111920.0,111910.0,0.17871365]
[1761762887371,0.08981901,111920.0,111910.0,0.17871365]
[1761762887570,2.17866714,111940.0,111930.0,0.1786831]
[1761762887981,0.17866714,111940.0,111930.0,0.1786831]
[1761762888190,0.46644083,111950.0,111940.0,0.17866714]
[1761762888398,0.18756709,111960.0,111930.0,0.17868184]
[1761762888635,0.17865135,111950.0,111940.0,0.17866714]
[1761762889241,0.17865135,111950.0,111930.0,0.18068029]
[1761762889446,2.17866714,111940.0,111930.0,0.002]
[1761762889652,2.26848615,111940.0,111930.0,0.002]
[1761762889865,2.18017684,111940.0,111930.0,0.002]
[1761762890070,0.0015097,111940.0,111930.0,0.1806831]
[1761762890485,0.0015097,111940.0,111930.0,0.1786831]
[1761762890690,0.0015097,111940.0,111930.0,0.26850211]
[1761762890899,0.0015097,111940.0,111930.0,0.1796831]
[1761762891528,0.0015097,111940.0,111930.0,0.26950211]
[1761762891701,0.0015097,111940.0,111930.0,0.27150211]
[1761762891920,0.0015097,111940.0,111930.0,0.1806831]
[1761762892302,0.0015097,111940.0,111930.0,0.27250211]
[1761762892505,0.00022978,111940.0,111930.0,0.1826831]
[1761762893505,0.00022978,111940.0,111930.0,0.1806831]
[1761762893925,0.00022978,111940.0,111930.0,0.1826831]
[1761762894688,0.00022978,111940.0,111930.0,0.1806831]
[1761762894901,0.00022978,111940.0,111900.0,0.52765331]
[1761762894902,0.17870759,111920.0,111900.0,0.17872888]
[1761762895113,0.20111007,111920.0,111900.0,0.178731]
[1761762895319,2.17871503,111910.0,111890.0,0.17879695]
[1761762895530,2.0,111910.0,111900.0,0.178731]
[1761762895727,2.17871503,111910.0,111900.0,0.178731]
[1761762895954,0.17871503,111910.0,111900.0,0.178731]
[1761762896820,2.0,111910.0,111900.0,0.178731]
[1761762896938,2.0,111910.0,111900.0,0.179731]
[1761762897139,2.17871503,111910.0,111900.0,0.179731]
[1761762897341,0.17871503,111910.0,111900.0,0.179731]
[1761762897542,0.17870065,111920.0,111910.0,0.17871503]
[1761762898234,0.27746465,111930.0,111910.0,0.17871503]
[1761762898392,2.17869907,111920.0,111910.0,0.17871503]
[1761762898724,0.17869907,111920.0,111910.0,0.17871503]
[1761762899219,0.17869907,111920.0,111910.0,0.001]
[1761762899438,3.40331345,111920.0,111910.0,0.001]
[1761762899607,2.90331345,111920.0,111910.0,0.003]
[1761762899840,2.26851808,111920.0,111910.0,0.003]
[1761762900056,2.26851808,111920.0,111910.0,0.001]
[1761762900468,2.26851808,111920.0,111910.0,0.002]
[1761762900668,2.17869907,111920.0,111910.0,0.002]
[1761762900853,2.17869907,111920.0,111910.0,0.001]
[1761762901256,2.0,111910.0,111900.0,0.17873044]
[1761762901484,2.0,111920.0,111910.0,0.17871503]
[1761762901884,0.1786831,111930.0,111920.0,0.17868454]
[1761762902088,2.0,111940.0,111930.0,0.1786831]
[1761762902310,2.17865174,111950.0,111940.0,0.17866714]
[1761762902518,2.26847075,111950.0,111940.0,0.17866714]
[1761762902720,2.2774033,111950.0,111920.0,0.17869499]
[1761762902862,1.00201768,111950.0,111930.0,0.1786831]
[1761762903074,2.0,111940.0,111930.0,0.1786831]
[1761762903858,2.17865118,111950.0,111930.0,0.26850211]
[1761762904101,2.0,111950.0,111940.0,0.17866714]
[1761762904301,2.17866985,111940.0,111920.0,0.18762994]
[1761762904514,2.17866985,111940.0,111910.0,0.18765078]
[1761762904515,2.0,111930.0,111910.0,0.18765078]
[1761762904716,0.1786831,111930.0,111920.0,0.17869907]
[1761762904959,0.17869907,111920.0,111900.0,0.17873044]
[1761762905170,0.17871503,111910.0,111900.0,0.178731]
[1761762905334,0.26853404,111910.0,111900.0,0.178731]
[1761762905553,0.1786831,111930.0,111900.0,0.27748656]
[1761762905880,0.17871503,111910.0,111900.0,0.18766755]
[1761762906068,0.17870023,111920.0,111900.0,0.18766755]
[1761762906307,0.17871503,111910.0,111900.0,0.18966755]
[1761762906757,0.17870023,111920.0,111900.0,0.180731]
[1761762906930,2.0,111920.0,111910.0,0.1787118]
[1761762907169,0.17869907,111920.0,111900.0,0.18966755]
[1761762907441,0.17871503,111910.0,111890.0,0.00127458]
[1761762907643,0.17871503,111910.0,111900.0,0.001]
[1761762908066,0.17871503,111910.0,111890.0,0.18002085]
[1761762908424,0.17871503,111910.0,111900.0,0.001]
[1761762908643,2.17869907,111920.0,111910.0,0.17871503]
[1761762909001,0.17869907,111920.0,111910.0,0.17871503]
[1761762909213,2.0,111930.0,111920.0,0.1786978]
[1761762909426,0.08981901,111930.0,111910.0,0.17871503]
[1761762909632,0.26850303,111930.0,111910.0,0.17871503]
[1761762909836,0.26850303,111930.0,111920.0,0.17869907]
[1761762910260,0.1786831,111930.0,111920.0,0.17869907]
[1761762910668,0.17869907,111920.0,111910.0,0.17971503]
[1761762910889,0.17869907,111920.0,111910.0,0.001]
[1761762911093,0.178731,111900.0,111890.0,0.00127458]
[1761762911297,0.90334538,111900.0,111890.0,0.00127458]
[1761762912323,0.178731,111900.0,111890.0,0.00327458]
[1761762912731,0.178731,111900.0,111890.0,0.00427458]
[1761762913143,3.95916568,111900.0,111890.0,0.00427458]
[1761762913349,3.95916568,111900.0,111890.0,0.00327458]
[1761762913350,3.48837227,111900.0,111890.0,0.00327458]
[1761762913563,0.17877893,111870.0,111860.0,5e-05]
[1761762914000,0.17877893,111870.0,111860.0,0.00069747]
[1761762914204,0.90339331,111870.0,111860.0,0.00069747]
[1761762914445,0.26859794,111870.0,111860.0,0.00069747]
[1761762914659,0.34,111880.0,111860.0,0.09051648]
[1761762914832,2.17873369,111900.0,111870.0,0.27753688]
[1761762915088,0.91226704,111910.0,111870.0,0.27753688]
[1761762915284,2.0,111900.0,111890.0,0.17874698]
[1761762915486,0.17873211,111900.0,111880.0,0.17876243]
[1761762915812,0.21537059,111900.0,111880.0,0.17876243]
[1761762916012,0.21537059,111900.0,111890.0,0.17874698]
[1761762916226,2.0,111880.0,111860.0,0.00105]
[1761762916410,0.17877893,111870.0,111860.0,0.00105]
[1761762917248,2.0,111870.0,111860.0,0.17884492]
[1761762917438,0.26859794,111870.0,111860.0,0.00105]
[1761762917661,0.17877893,111870.0,111860.0,0.00305]
[1761762917802,0.17877893,111870.0,111860.0,0.00105]
[1761762918005,0.17877893,111870.0,111860.0,0.17984492]
[1761762918232,2.17877893,111870.0,111860.0,0.00205]
[1761762918382,0.25174629,111870.0,111860.0,0.00105]
[1761762918588,0.17877893,111870.0,111860.0,0.00105]
[1761762919009,0.17877893,111870.0,111860.0,0.17984492]
[1761762919204,2.17877893,111870.0,111860.0,0.00105]
[1761762919484,0.17877893,111870.0,111860.0,5e-05]
[1761762919683,0.17877893,111870.0,111860.0,0.00105]
[1761762920083,0.17877893,111870.0,111860.0,0.17984492]
[1761762920265,0.15128509,111880.0,111860.0,0.17984492]
[1761762920471,0.15128509,111880.0,111860.0,0.00205]
[1761762920472,2.0,111870.0,111860.0,0.00205]
[1761762920673,0.17877893,111870.0,111860.0,0.00105]
[1761762920872,0.17877893,111870.0,111860.0,0.17984492]
[1761762921030,0.17877893,111870.0,111860.0,0.17884492]
[1761762921614,0.17877893,111870.0,111860.0,5e-05]
[1761762921615,0.64700384,111870.0,111860.0,5e-05]
[1761762921752,0.73682285,111870.0,111860.0,5e-05]
[1761762921966,0.08981901,111870.0,111860.0,0.17884492]
[1761762922166,0.26048632,111880.0,111860.0,0.17884492]
[1761762922167,0.34,111880.0,111860.0,0.17884492]
[1761762922529,0.17876296,111880.0,111870.0,0.17877893]
[1761762922760,0.17876296,111880.0,111860.0,0.17984492]
[1761762922938,0.17876296,111880.0,111870.0,0.17877893]
[1761762923345,0.17877893,111870.0,111860.0,0.17884492]
[1761762923570,0.73682285,111870.0,111860.0,0.00105]
[1761762923778,0.82664186,111870.0,111860.0,0.00105]
[1761762924189,0.82664186,111870.0,111860.0,5e-05]
[1761762924401,2.82664186,111870.0,111860.0,5e-05]
[1761762924610,2.67884288,111830.0,111820.0,5e-05]
[1761762924819,0.51885888,111820.0,111770.0,0.00045]
[1761762925034,2.64714779,111780.0,111770.0,0.00045]
[1761762925244,2.64714779,111780.0,111700.0,0.1181917]
[1761762925245,0.17899142,111740.0,111700.0,0.00999999]
[1761762925456,0.17899142,111740.0,111710.0,0.08981901]
[1761762925457,0.64722837,111730.0,111710.0,0.08981901]
[1761762925665,3.1154718,111720.0,111710.0,0.08981901]
[1761762925877,3.4554718,111720.0,111710.0,0.08981901]
[1761762926089,0.18797292,111720.0,111690.0,0.00045]
[1761762926301,0.18797292,111720.0,111710.0,0.00389002]
[1761762926302,0.60412532,111720.0,111710.0,0.00389002]
[1761762926508,2.3459004,111720.0,111710.0,0.00389002]
[1761762926716,2.17901897,111720.0,111710.0,0.00389002]
[1761762926931,2.17901897,111720.0,111710.0,0.09370903]
[1761762926932,2.51901897,111720.0,111710.0,0.09370903]
[1761762927153,2.51905102,111700.0,111690.0,0.00045]
[1761762927393,2.51905102,111700.0,111690.0,0.09026901]
[1761762927590,0.51908309,111680.0,111670.0,5e-05]
[1761762927798,2.647308,111680.0,111670.0,0.08986901]
[1761762928008,3.45553291,111680.0,111670.0,5e-05]
[1761762928219,2.51914725,111640.0,111630.0,0.00045]
[1761762928431,3.45559707,111640.0,111630.0,0.00045]
[1761762928640,2.9973882,111630.0,111620.0,0.00043625]
[1761762928853,2.34,111630.0,111620.0,0.09025526]
[1761762929083,0.03618228,111640.0,111620.0,0.00043625]
[1761762929305,0.17919541,111610.0,111600.0,0.0001]
[1761762929526,0.17924359,111580.0,111570.0,0.0004]
[1761762929768,0.9874685,111580.0,111570.0,0.01039999]
[1761762929987,0.9874685,111580.0,111530.0,0.00045]
[1761762929988,0.17930787,111540.0,111530.0,0.00045]
[1761762930251,0.188375,111480.0,111450.0,0.02834525]
[1761762930459,0.188375,111480.0,111450.0,0.0004]
[1761762930460,2.92825532,111460.0,111450.0,0.0004]
[1761762930666,3.26825532,111460.0,111450.0,0.0004]
[1761762930845,3.26825532,111460.0,111430.0,0.01834848]
[1761762930846,2.33183771,111440.0,111430.0,0.01834848]
[1761762931087,3.26828753,111440.0,111430.0,0.01834848]
[1761762931317,1.99186992,111420.0,111410.0,0.00683984]
[1761762931528,2.17953321,111400.0,111370.0,8e-05]
[1761762931734,0.51954933,111390.0,111370.0,8e-05]
[1761762931937,3.10147419,111380.0,111370.0,8e-05]
[1761762932142,2.3489823,111330.0,111320.0,0.00683984]
[1761762932364,2.51967837,111310.0,111300.0,0.0002]
[1761762932830,0.17972681,111280.0,111260.0,0.000899]
[1761762933085,2.51974296,111270.0,111260.0,0.000899]
[1761762933315,2.67979144,111240.0,111230.0,0.5]
[1761762933520,3.11170017,111240.0,111230.0,0.47299139]
[1761762933761,3.01983994,111210.0,111200.0,0.01689984]
[1761762933967,2.0,111190.0,111160.0,0.2192806]
[1761762934177,0.67985611,111200.0,111160.0,0.2192806]
[1761762934178,2.0,111230.0,111200.0,0.17985535]
[1761762934386,2.0,111230.0,111190.0,0.18886351]
[1761762934387,2.0,111210.0,111190.0,0.18886351]
[1761762934605,0.41099999,111280.0,111210.0,2.18883193]
[1761762934812,0.05377801,111310.0,111250.0,0.34]
[1761762935020,0.004,111310.0,111270.0,2.0]
[1761762935250,0.004,111310.0,111270.0,2.17973619]
[1761762935462,0.59088701,111380.0,111320.0,0.34999999]
[1761762935669,0.06483901,111330.0,111320.0,0.54764102]
[1761762935876,0.06210184,111330.0,111320.0,0.19864103]
[1761762936079,0.05093348,111330.0,111320.0,0.2616489]
[1761762936287,0.01973793,111400.0,111350.0,0.00898069]
[1761762936492,0.37951088,111450.0,111360.0,0.17060331]
[1761762936493,0.00999999,111410.0,111360.0,0.17060331]
[1761762936717,0.00999999,111410.0,111360.0,0.11651381]
[1761762936929,0.00999999,111390.0,111380.0,0.00999999]
[1761762937211,2.77145806,111390.0,111380.0,0.00999999]
[1761762937382,2.77145806,111390.0,111370.0,0.00999999]
[1761762937383,0.00999999,111380.0,111370.0,0.00999999]
[1761762937588,0.00999999,111380.0,111310.0,0.1896168]
[1761762937589,2.34999999,111320.0,111310.0,0.00999999]
[1761762937894,2.34999999,111320.0,111300.0,0.03618228]
[1761762937895,0.34,111310.0,111300.0,0.03618228]
[1761762938128,0.00999999,111320.0,111290.0,0.18869274]
[1761762938371,0.34999999,111340.0,111290.0,0.1886889]
[1761762938605,0.1886018,111350.0,111330.0,0.17964569]
[1761762938606,0.00999999,111350.0,111330.0,0.17964569]
[1761762938834,0.00999999,111350.0,111320.0,0.18864513]
[1761762939064,0.00999999,111340.0,111330.0,0.01313228]
[1761762939309,0.00999999,111330.0,111290.0,0.18970808]
[1761762939534,0.00999999,111320.0,111300.0,0.00898472]
[1761762939748,0.00999999,111320.0,111250.0,0.00999999]
[1761762939749,2.0,111280.0,111250.0,0.00999999]
[1761762939967,0.17984079,111210.0,111150.0,0.17993292]
[1761762940184,0.17984079,111210.0,111160.0,0.1889137]
[1761762940185,0.17984522,111210.0,111160.0,0.1889137]
[1761762940427,0.17984522,111210.0,111160.0,0.18891636]
[1761762940428,0.00999999,111180.0,111160.0,0.18891636]
[1761762940635,0.01049999,111250.0,111190.0,2.1888628]
[1761762940849,0.01999998,111300.0,111260.0,0.00898795]
[1761762941072,0.00999999,111310.0,111300.0,0.18867909]
[1761762941281,0.00999999,111370.0,111320.0,0.18864534]
[1761762941495,0.00999999,111390.0,111350.0,0.18859374]
[1761762941711,2.0,111410.0,111380.0,0.08981901]
[1761762941922,0.00999999,111400.0,111380.0,0.26938343]
[1761762942127,0.00999999,111390.0,111380.0,0.17956442]
[1761762942344,2.0,111430.0,111400.0,0.00897666]
[1761762942553,0.01018761,111440.0,111410.0,0.18849292]
[1761762942767,0.18844363,111470.0,111420.0,0.00897504]
[1761762942982,0.00999999,111460.0,111440.0,0.17946404]
[1761762943191,2.0,111490.0,111450.0,0.18842529]
[1761762943396,2.0,111470.0,111430.0,0.00897424]
[1761762943611,0.00999999,111430.0,111420.0,0.03618228]
[1761762943838,0.00999999,111390.0,111380.0,0.00999999]
[1761762944048,2.52959769,111360.0,111330.0,0.00999999]
[1761762944268,2.52959769,111360.0,111310.0,0.00898391]
[1761762944269,0.19859607,111350.0,111310.0,0.00898391]
[1761762944478,0.00999999,111350.0,111320.0,0.18864372]
[1761762944772,0.00999999,111340.0,111320.0,0.18864372]
[1761762945023,0.18951365,111370.0,111330.0,0.08981901]
[1761762945024,0.00999999,111350.0,111330.0,0.08981901]
[1761762945259,0.35009215,111380.0,111340.0,0.18860981]
[1761762945497,0.00999999,111360.0,111330.0,0.27844721]
[1761762945739,0.35003147,111380.0,111340.0,0.18861016]
[1761762945970,0.00999999,111340.0,111330.0,0.08981901]
[1761762946200,0.00999999,111360.0,111330.0,0.2694651]
[1761762946402,0.01898148,111340.0,111290.0,0.19775116]
[1761762946613,0.00999999,111310.0,111300.0,0.17968056]
[1761762946824,0.00999999,111310.0,111300.0,0.26949957]
[1761762947043,0.00999999,111310.0,111300.0,0.08981901]
[1761762947299,2.52967836,111310.0,111300.0,0.08981901]
[1761762947922,2.52967836,111310.0,111230.0,0.17980192]
[1761762947923,0.17976084,111260.0,111210.0,0.00999999]
[1761762948152,0.1887484,111260.0,111220.0,0.18876852]
[1761762948363,0.00999999,111240.0,111230.0,0.18879734]
[1761762948569,0.34,111280.0,111260.0,0.17974516]
[1761762948787,0.18871385,111300.0,111250.0,0.18876404]
[1761762948994,0.18871385,111300.0,111220.0,0.18878177]
[1761762948995,0.00999999,111260.0,111220.0,0.18878177]
[1761762949231,0.00999999,111230.0,111220.0,0.27860078]
[1761762949442,0.00999999,111230.0,111220.0,0.08981901]
[1761762949900,0.5198076,111230.0,111220.0,0.08981901]
[1761762950121,2.52980759,111230.0,111190.0,0.18922036]
[1761762950370,0.00999999,111200.0,111190.0,0.0004]
[1761762950606,0.5298561,111200.0,111190.0,0.0004]
[1761762950801,0.51985611,111200.0,111190.0,0.00029427]
[1761762951221,0.08997273,111200.0,111190.0,0.09011328]
[1761762951435,2.3489928,111200.0,111100.0,0.0710046]
[1761762951649,2.3489928,111200.0,111000.0,24.17436101]
[1761762951650,2.0,111040.0,111000.0,24.17436101]
[1761762951858,2.66519585,111010.0,111000.0,22.31730182]
[1761762952066,0.56016391,111010.0,111000.0,21.81640282]
[1761762952292,1.2232006,111010.0,111000.0,16.61986288]
[1761762952499,2.81349219,111010.0,111000.0,14.65570142]
[1761762952712,2.61332826,111010.0,111000.0,14.38792715]
[1761762952926,0.26320829,111010.0,111000.0,14.38841847]
[1761762953138,0.22395131,111010.0,111000.0,14.38835997]
[1761762953347,2.02395131,111010.0,111000.0,14.38835997]
[1761762953568,2.20411525,111010.0,111000.0,14.38835997]
[1761762953785,0.54411525,111010.0,111000.0,13.70597899]
[1761762953992,0.59916555,111010.0,111000.0,12.9366209]
[1761762954207,0.59916555,111010.0,111000.0,12.21485794]
[1761762954415,1.46924398,111010.0,111000.0,7.7227809]
[1761762954621,1.72380963,111010.0,111000.0,3.40665437]
[1761762954832,1.06839016,111010.0,111000.0,1.26543465]
[1761762955040,3.02329997,111010.0,111000.0,1.23835138]
[1761762955305,2.5901964,110990.0,110980.0,0.00101322]
[1761762955533,2.18025597,110960.0,110940.0,0.0286417]
[1761762955756,0.53926072,110970.0,110940.0,0.0286417]
[1761762955757,0.39026136,110950.0,110940.0,0.0286417]
[1761762955980,2.38026137,110950.0,110940.0,0.00155662]
[1761762956182,0.01999998,110880.0,110800.0,0.00902527]
[1761762956413,0.2,110800.0,110730.0,0.5004514]
[1761762956715,2.00938632,110730.0,110720.0,0.05242408]
[1761762956968,0.18066847,110700.0,110690.0,0.00091035]
[1761762957186,0.00993543,110690.0,110670.0,0.25995411]
[1761762957383,1.973708,110720.0,110670.0,0.57420053]
[1761762957839,0.21914848,110760.0,110720.0,0.00903179]
[1761762958083,1.97134,110760.0,110720.0,0.00903179]
[1761762958344,0.18063874,110720.0,110660.0,0.1015443]
[1761762958585,1.97134,110740.0,110660.0,0.1015443]
[1761762958586,0.01954858,110760.0,110680.0,0.18971984]
[1761762958824,0.00999999,110740.0,110700.0,1.99995444]
[1761762959052,1.971385,110730.0,110680.0,0.00903505]
[1761762959244,0.00999999,110730.0,110690.0,0.00903423]
[1761762959457,0.01954858,110720.0,110670.0,0.1896874]
[1761762959668,1.971385,110710.0,110660.0,0.11058098]
[1761762959882,0.41026601,110670.0,110660.0,0.1015443]
[1761762960091,0.54026602,110670.0,110660.0,0.1015443]
[1761762960310,0.74031502,110640.0,110560.0,0.94547605]
[1761762960520,0.01954858,110560.0,110520.0,0.03]
[1761762960728,0.18092998,110540.0,110520.0,0.03]
[1761762960914,0.18092998,110540.0,110500.0,10.14199952]
[1761762960915,0.18097909,110510.0,110500.0,10.14199952]
[1761762961160,0.20052767,110510.0,110500.0,9.71311498]
[1761762961370,0.54052767,110510.0,110500.0,8.72993098]
[1761762961788,0.56838064,110510.0,110500.0,8.69307888]
[1761762961996,0.55052767,110510.0,110500.0,8.68362569]
[1761762962216,0.54052767,110510.0,110500.0,8.67469566]
[1761762962423,0.5370805,110510.0,110500.0,7.18982992]
[1761762962627,2.5370805,110510.0,110500.0,6.34565084]
[1761762962870,0.02954857,110510.0,110500.0,6.31680358]
[1761762963066,0.00374173,110510.0,110500.0,6.31680358]
[1761762963272,0.4,110520.0,110500.0,6.22834358]
[1761762963493,0.20282741,110510.0,110500.0,6.21497831]
[1761762963699,0.19342066,110510.0,110500.0,6.21497831]
[1761762963907,0.01244157,110510.0,110500.0,6.24143555]
[1761762964131,3.01244157,110510.0,110500.0,6.2413484]
[1761762964363,0.39716239,110510.0,110500.0,3.2413484]
[1761762964612,2.62613885,110510.0,110500.0,2.79774535]
[1761762964839,0.20049466,110540.0,110500.0,3.37965409]
[1761762964840,0.00048311,110540.0,110500.0,3.37965409]
[1761762965036,0.00048311,110540.0,110500.0,2.28774535]
[1761762965258,0.0584,110510.0,110500.0,2.60128811]
[1761762965474,0.0584,110510.0,110500.0,2.26128811]
[1761762965680,2.041476,110620.0,110520.0,0.00904813]
[1761762965925,0.2,110620.0,110570.0,0.18991706]
[1761762966129,0.00904322,110580.0,110500.0,2.26128811]
[1761762966338,2.05051922,110580.0,110500.0,2.26128811]
[1761762966550,2.05051922,110580.0,110560.0,0.00999999]
[1761762966551,0.34,110570.0,110560.0,0.00999999]
[1761762966801,0.0090424,110590.0,110540.0,0.00999999]
[1761762966802,2.041476,110590.0,110540.0,0.00999999]
[1761762967004,2.041476,110590.0,110500.0,2.46132869]
[1761762967005,2.23136744,110590.0,110560.0,0.00999999]
[1761762967219,2.22243504,110530.0,110500.0,2.11925811]
[1761762967422,2.22245509,110510.0,110500.0,0.05135568]
[1761762967627,0.52097909,110510.0,110500.0,0.04900612]
[1761762967847,3.53097908,110510.0,110500.0,0.02184256]
[1761762968054,0.01397491,110510.0,110500.0,0.02184256]
[1761762968259,0.21397491,110510.0,110500.0,0.02184256]
[1761762968498,0.2,110510.0,110490.0,0.0012776]
[1761762968705,0.2,110580.0,110540.0,0.00904649]
[1761762969969,0.00117878,110670.0,110650.0,0.40873818]
[1761762970172,0.00903097,110730.0,110660.0,0.58190874]
[1761762970387,3.18967005,110720.0,110650.0,0.34]
[1761762970597,3.0,110720.0,110630.0,0.00903913]
[1761762970810,3.0,110670.0,110610.0,0.59190873]
[1761762971079,3.0,110690.0,110620.0,0.34]
[1761762971294,3.0,110710.0,110640.0,0.52980019]
[1761762971506,3.0,110710.0,110670.0,0.00903587]
[1761762971754,0.2,110720.0,110710.0,0.34]
[1761762971983,0.00048408,110720.0,110710.0,0.58190874]
[1761762972204,0.00048408,110720.0,110710.0,1.10256089]
[1761762972394,0.18953101,110800.0,110750.0,0.00902934]
[1761762972395,0.2,110800.0,110750.0,0.00902934]
[1761762972603,0.2,110810.0,110770.0,0.58190874]
[1761762972809,0.0008568,110820.0,110770.0,0.58190874]
[1761762972810,0.0008568,110820.0,110790.0,0.00902608]
[1761762973053,0.0008568,110820.0,110810.0,0.58190874]
[1761762973241,0.0008568,110820.0,110790.0,0.18954121]
[1761762973242,3.0,110810.0,110790.0,0.58190874]
[1761762973450,0.01781421,110810.0,110790.0,0.18954317]
[1761762973656,0.02347872,110820.0,110790.0,0.18954317]
[1761762973657,0.02347872,110820.0,110800.0,0.18050541]
[1761762973859,0.23191602,110840.0,110820.0,0.00902364]
[1761762973860,0.01781421,110840.0,110820.0,0.00902364]
[1761762974066,0.03191602,110830.0,110810.0,0.52951357]
[1761762974317,0.08202168,110880.0,110810.0,0.93093319]
[1761762974542,0.02222586,110840.0,110800.0,4.912e-05]
[1761762974745,0.00497928,110840.0,110800.0,4.912e-05]
[1761762974956,0.21003016,110870.0,110800.0,4.912e-05]
[1761762974960,0.02222586,110860.0,110830.0,0.18947876]
[1761762975173,0.01781421,110870.0,110800.0,0.00907439]
[1761762975174,0.06918675,110870.0,110800.0,0.00907439]
[1761762975379,0.06420747,110840.0,110810.0,0.00902445]
[1761762975607,0.06420747,110850.0,110840.0,0.18044027]
[1761762975814,0.06420747,110850.0,110830.0,0.00902282]
[1761762976021,0.06420747,110880.0,110850.0,0.18042399]
[1761762976226,3.06918675,110890.0,110830.0,0.00902282]
[1761762976431,0.00497928,110870.0,110810.0,0.00999999]
[1761762976648,3.0,110850.0,110820.0,0.00999999]
[1761762976858,3.0,110850.0,110770.0,0.01404842]
[1761762976859,3.0,110840.0,110800.0,0.00902527]
[1761762977073,3.0,110830.0,110780.0,0.01902689]
[1761762977329,3.0,110830.0,110760.0,0.00999999]
[1761762977330,0.00497928,110790.0,110760.0,0.00999999]
[1761762977515,2.98653683,110760.0,110730.0,0.00903097]
[1761762977732,0.00999999,110770.0,110720.0,0.19062081]
[1761762977954,0.00999999,110750.0,110700.0,0.00903342]
[1761762978163,0.00999999,110780.0,110750.0,0.18961341]
[1761762978383,0.34,110820.0,110760.0,0.77150219]
[1761762978384,0.00999999,110810.0,110760.0,0.77150219]
[1761762978621,0.00999999,110830.0,110790.0,0.18954444]
[1761762978865,0.00999999,110860.0,110790.0,0.00902608]
[1761762979085,0.76236596,110830.0,110750.0,0.06881153]
[1761762979285,3.0,110800.0,110730.0,0.18964916]
[1761762979530,0.00999999,110810.0,110750.0,0.18062816]
[1761762979743,3.0,110820.0,110760.0,0.18959436]
[1761762979943,3.00999999,110810.0,110750.0,0.00907846]
[1761762980196,0.18046142,110830.0,110760.0,0.00902853]
[1761762980197,0.00999999,110820.0,110760.0,0.00902853]
[1761762980397,3.18048954,110810.0,110750.0,4.912e-05]
[1761762980612,3.0,110790.0,110750.0,4.912e-05]
[1761762980832,0.00999999,110800.0,110770.0,0.52958104]
[1761762981040,0.38040368,110870.0,110770.0,0.52958104]
[1761762981041,0.00580999,110850.0,110800.0,0.00902527]
[1761762981256,3.0,110850.0,110790.0,0.18954254]
[1761762981466,0.18622001,110860.0,110840.0,0.01896462]
[1761762981467,0.00580999,110860.0,110840.0,0.01896462]
[1761762981684,0.00580999,110860.0,110780.0,0.18956438]
[1761762981685,3.18623407,110850.0,110780.0,0.18956438]
[1761762981903,3.00580999,110840.0,110790.0,0.18954685]
[1761762982112,3.0,110830.0,110800.0,0.18953044]
[1761762982321,0.01813619,110830.0,110820.0,0.18047283]
[1761762982540,0.00048468,110840.0,110820.0,0.18047283]
[1761762982541,0.00048468,110840.0,110830.0,0.18045655]